fUSD/lending_fUSD_20240802
["ID","MTS","AMOUNT","RATE_DAILY","PERIOD"]
[333927884,1722631886559,-500.0,0.0001726,2]
[333927885,1722631886572,-1811.88,0.0001726,2]
[333927886,1722631886582,-963.16,0.0001726,2]
[333927887,1722631886591,-1489.44,0.0001726,2]
[333927888,1722631886601,-2222.35,0.0001726,2]
[333927889,1722631886610,-1632.57,0.0001726,2]
[333927890,1722631886619,-500.0,0.0001726,2]
[333927891,1722631886630,-1023.72,0.0001726,2]
[333927892,1722631886639,-500.0,0.0001726,2]
[333927893,1722631886649,-12414.66,0.0001726,2]
[333927894,1722631886659,-709.25,0.0001726,2]
[333927895,1722631886668,-652.1,0.0001726,2]
[333927896,1722631886681,-753.62,0.0001726,2]
[333927897,1722631886692,-506.18,0.0001726,2]
[333927898,1722631886701,-560.86,0.0001726,2]
[333927899,1722631886710,-641.97,0.0001726,2]
[333927900,1722631886719,-500.0,0.0001726,2]
[333927901,1722631886729,-500.0,0.0001726,2]
[333927902,1722631886738,-56866.82,0.0001726,2]
[333927903,1722631886747,-1035.53,0.0001726,2]
[333927904,1722631886759,-1941.09,0.0001726,2]
[333927905,1722631886768,-239.16,0.0001726,2]
[333927906,1722631886777,-2254.17,0.0001726,2]
[333927907,1722631886787,-1098.24,0.0001726,2]
[333927908,1722631886797,-2191.59,0.0001726,2]
[333927909,1722631886806,-1032.58,0.0001726,2]
[333927910,1722631886817,-534.81,0.0001726,2]
[333927911,1722631886827,-1471.92,0.0001726,2]
[333927912,1722631886837,-1164.82,0.0001726,2]
[333927913,1722631886849,-722.26,0.0001726,2]
[333927914,1722631886858,-1289.96,0.0001726,2]
[333927915,1722631886868,-929.85,0.0001726,2]
[333927916,1722631886877,-2008.59,0.0001726,2]
[333927917,1722631886886,-1026.06,0.0001726,2]
[333927918,1722631886896,-1825.01,0.0001726,2]
[333927919,1722631886905,-876.3,0.0001726,2]
[333927920,1722631886916,-500.0,0.0001726,2]
[333927921,1722631886925,-1590.68,0.0001726,2]
[333927922,1722631886935,-1819.5,0.0001726,2]
[333927923,1722631886944,-4221.24,0.0001726,2]
[333927924,1722631886953,-500.0,0.0001726,2]
[333927925,1722631886962,-500.0,0.0001726,2]
[333927926,1722631886972,-2709.73,0.0001726,2]
[333927927,1722631886981,-1273.14,0.0001726,2]
[333927928,1722631886991,-2065.12,0.0001726,2]
[333927929,1722631887001,-777.69,0.0001726,2]
[333927930,1722631887010,-500.0,0.0001726,2]
[333927931,1722631887020,-21339.92,0.0001726,2]
[333927932,1722631887029,-728.61,0.0001726,2]
[333927933,1722631887038,-1275.99,0.0001726,2]
[333927934,1722631887047,-2937.5,0.0001726,2]
[333927935,1722631887056,-2027.9,0.0001726,2]
[333927936,1722631887065,-536.05,0.0001726,2]
[333927937,1722631887075,-1082.28,0.0001726,2]
[333927938,1722631887084,-500.0,0.0001726,2]
[333927939,1722631887093,-1697.37,0.0001726,2]
[333927940,1722631887102,-500.0,0.0001726,2]
[333927941,1722631887111,-500.0,0.0001726,2]
[333927942,1722631887121,-10282.29,0.0001726,2]
[333927943,1722631887130,-1205.76,0.0001726,2]
[333927944,1722631887139,-1232.26,0.0001726,2]
[333927945,1722631887148,-8341.36,0.0001726,2]
[333927946,1722631887158,-500.0,0.0001726,2]
[333927947,1722631887167,-500.0,0.0001726,2]
[333927948,1722631887177,-18588.87,0.0001726,2]
[333927949,1722631887187,-2444.44,0.0001726,2]
[333927950,1722631887197,-811.82,0.0001726,2]
[333927951,1722631887206,-1028.42,0.0001726,2]
[333927952,1722631887215,-1666.82,0.0001726,2]
[333927953,1722631887225,-2041.7,0.0001726,2]
[333927954,1722631887235,-500.0,0.0001726,2]
[333927955,1722631887244,-854.03,0.0001726,2]
[333927956,1722631887254,-2549.35,0.0001726,2]
[333927957,1722631887264,-3907.73,0.0001726,2]
[333927958,1722631887273,-818.92,0.0001726,2]
[333927959,1722631887282,-962.09,0.0001726,2]
[333927960,1722631887291,-2495.02,0.0001726,2]
[333927961,1722631887301,-12083.15,0.0001726,2]
[333927962,1722631887310,-4999.3,0.0001726,2]
[333927963,1722631887319,-2085.16,0.0001726,2]
[333927964,1722631887329,-2257.59,0.0001726,2]
[333927965,1722631887339,-638.28,0.0001726,2]
[333927966,1722631887348,-2414.82,0.0001726,2]
[333927967,1722631887358,-1355.63,0.0001726,2]
[333927968,1722631887367,-500.0,0.0001726,2]
[333927969,1722631887377,-500.0,0.0001726,2]
[333927970,1722631887387,-500.0,0.0001726,2]
[333927971,1722631887397,-500.0,0.0001726,2]
[333927972,1722631887407,-874.71,0.0001726,2]
[333927973,1722631887417,-500.0,0.0001726,2]
[333927974,1722631887427,-608.96,0.0001726,2]
[333927975,1722631887438,-9705.12,0.0001726,2]
[333927976,1722631887450,-500.0,0.0001726,2]
[333927977,1722631887459,-14082.4,0.0001726,2]
[333927978,1722631887469,-1893.08,0.0001726,2]
[333927979,1722631887479,-500.0,0.0001726,2]
[333927980,1722631887489,-523.03,0.0001726,2]
[333927981,1722631887498,-1119.23,0.0001726,2]
[333927982,1722631887508,-683.87,0.0001726,2]
[333927983,1722631887518,-500.0,0.0001726,2]
[333927984,1722631887527,-1860.28,0.0001726,2]
[333927985,1722631887537,-500.0,0.0001726,2]
[333927986,1722631887547,-500.0,0.0001726,2]
[333927987,1722631887557,-1382.6,0.0001726,2]
[333927988,1722631887567,-903.96,0.0001726,2]
[333927989,1722631887576,-954.34,0.0001726,2]
[333927990,1722631887585,-3530.0,0.0001726,2]
[333927991,1722631887595,-3961.34,0.0001726,2]
[333927992,1722631887605,-500.0,0.0001726,2]
[333927993,1722631887615,-500.0,0.0001726,2]
[333927994,1722631887625,-500.0,0.0001726,2]
[333927995,1722631887634,-500.0,0.0001726,2]
[333927996,1722631887644,-843.81,0.0001726,2]
[333927997,1722631887654,-12529.11,0.0001726,2]
[333927998,1722631887664,-500.0,0.0001726,2]
[333927999,1722631887679,-500.0,0.0001726,2]
[333928000,1722631887690,-639.03,0.0001726,2]
[333928001,1722631887700,-500.0,0.0001726,2]
[333928002,1722631887710,-500.0,0.0001726,2]
[333928003,1722631887721,-3001.26,0.0001726,2]
[333928004,1722631887730,-500.0,0.0001726,2]
[333928005,1722631887740,-683.57,0.0001726,2]
[333928006,1722631887753,-1798.8,0.0001726,2]
[333928007,1722631887763,-500.0,0.0001726,2]
[333928008,1722631887772,-5697.34,0.0001726,2]
[333928009,1722631887782,-1463.12,0.0001726,2]
[333928010,1722631887791,-4074.77,0.0001726,2]
[333928011,1722631887801,-897.77,0.0001726,2]
[333928012,1722631887810,-878.31,0.0001726,2]
[333928013,1722631887819,-5102.81,0.0001726,2]
[333928014,1722631887829,-655.72,0.0001726,2]
[333928015,1722631887839,-1743.47,0.0001726,2]
[333928016,1722631887848,-500.0,0.0001726,2]
[333928017,1722631887858,-500.0,0.0001726,2]
[333928018,1722631887867,-1173.24,0.0001726,2]
[333928019,1722631887877,-500.0,0.0001726,2]
[333928020,1722631887887,-500.0,0.0001726,2]
[333928021,1722631887896,-6837.04,0.0001726,2]
[333928022,1722631887905,-5756.18,0.0001726,2]
[333928023,1722631887915,-1257.32,0.0001726,2]
[333928024,1722631887924,-500.0,0.0001726,2]
[333928025,1722631887933,-1650.22,0.0001726,2]
[333928026,1722631887947,-2765.65,0.0001726,2]
[333928027,1722631887956,-2301.74,0.0001726,2]
[333928028,1722631887965,-500.0,0.0001726,2]
[333928029,1722631887974,-6409.64,0.0001726,2]
[333928030,1722631887983,-1236.74,0.0001726,2]
[333928031,1722631887992,-509.19,0.0001726,2]
[333928032,1722631888002,-733.33,0.0001726,2]
[333928033,1722631888011,-500.0,0.0001726,2]
[333928034,1722631888020,-500.0,0.0001726,2]
[333928035,1722631888031,-500.0,0.0001726,2]
[333928036,1722631888040,-5372.26,0.0001726,2]
[333928037,1722631888050,-5544.95,0.0001726,2]
[333928038,1722631888060,-3951.1,0.0001726,2]
[333928039,1722631888070,-256.81495914,0.0001726,2]
[333928040,1722631888079,-1851.65,0.0001726,2]
[333928041,1722631888089,-2577.99,0.0001726,2]
[333928042,1722631888100,-3586.66,0.0001726,2]
[333928043,1722631888110,-1224.81,0.0001726,2]
[333928044,1722631888120,-1209.35,0.0001726,2]
[333928045,1722631888130,-500.0,0.0001726,2]
[333928046,1722631888140,-2249.46,0.0001726,2]
[333928047,1722631888150,-500.0,0.0001726,2]
[333928048,1722631888160,-10535.6,0.0001726,2]
[333928049,1722631888169,-2406.02,0.0001726,2]
[333928050,1722631888179,-1453.7,0.0001726,2]
[333928051,1722631888190,-559.04,0.0001726,2]
[333928052,1722631888200,-2538.45,0.0001726,2]
[333928053,1722631888210,-500.0,0.0001726,2]
[333928054,1722631888364,-8692.9,0.0001726,2]
[333928055,1722631888375,-500.0,0.0001726,2]
[333928056,1722631888385,-500.0,0.0001726,2]
[333928057,1722631888395,-3396.73,0.0001726,2]
[333928058,1722631888406,-3668.51,0.0001726,2]
[333928059,1722631888416,-2268.82,0.0001726,2]
[333928060,1722631888426,-1514.47,0.0001726,2]
[333928061,1722631888438,-500.0,0.0001726,2]
[333928062,1722631888448,-1406.85,0.0001726,2]
[333928063,1722631888458,-523.86,0.0001726,2]
[333928064,1722631888467,-502.95,0.0001726,2]
[333928065,1722631888477,-688.7,0.0001726,2]
[333928066,1722631888488,-1979.47,0.0001726,2]
[333928067,1722631888498,-922.87,0.0001726,2]
[333928068,1722631888509,-3211.99,0.0001726,2]
[333928069,1722631888520,-797.53,0.0001726,2]
[333928070,1722631888530,-2191.83,0.0001726,2]
[333928071,1722631888540,-3705.69,0.0001726,2]
[333928072,1722631888549,-500.0,0.0001726,2]
[333928073,1722631888560,-500.0,0.0001726,2]
[333928074,1722631888570,-1575.51,0.0001726,2]
[333928075,1722631888580,-3196.73,0.0001726,2]
[333928076,1722631888591,-2709.61,0.0001726,2]
[333928077,1722631888601,-500.0,0.0001726,2]
[333928078,1722631888612,-500.0,0.0001726,2]
[333928079,1722631888623,-2713.18,0.0001726,2]
[333928080,1722631888633,-4453.97,0.0001726,2]
[333928081,1722631888646,-1958.22,0.0001726,2]
[333928082,1722631888655,-2340.98,0.0001726,2]
[333928083,1722631888665,-500.0,0.0001726,2]
[333928084,1722631888680,-500.0,0.0001726,2]
[333928085,1722631888690,-563.69,0.0001726,2]
[333928086,1722631888700,-869.62,0.0001726,2]
[333928087,1722631888710,-2375.03,0.0001726,2]
[333928088,1722631888721,-500.0,0.0001726,2]
[333928089,1722631888733,-2389.86,0.0001726,2]
[333928090,1722631888743,-500.0,0.0001726,2]
[333928091,1722631888755,-1715.15,0.0001726,2]
[333928092,1722631888764,-630.02,0.0001726,2]
[333928093,1722631888773,-500.0,0.0001726,2]
[333928094,1722631888783,-3562.05,0.0001726,2]
[333928095,1722631888793,-2469.32,0.0001726,2]
[333928096,1722631888802,-6540.2,0.0001726,2]
[333928097,1722631888812,-9151.13,0.0001726,2]
[333928098,1722631888823,-4990.42,0.0001726,2]
[333928099,1722631888833,-509.1,0.0001726,2]
[333928100,1722631888844,-658.08,0.0001726,2]
[333928101,1722631888855,-3342.69,0.0001726,2]
[333928102,1722631888864,-500.0,0.0001726,2]
[333928103,1722631888874,-26009.1,0.0001726,2]
[333928104,1722631888883,-28175.02,0.0001726,2]
[333928105,1722631888892,-500.0,0.0001726,2]
[333928106,1722631888903,-4775.81,0.0001726,2]
[333928107,1722631888913,-1900.39,0.0001726,2]
[333928108,1722631888924,-2182.95,0.0001726,2]
[333928109,1722631888934,-1438.66,0.0001726,2]
[333928110,1722631888946,-4377.02,0.0001726,2]
[333928111,1722631888956,-500.0,0.0001726,2]
[333928112,1722631888965,-6436.04,0.0001726,2]
[333928113,1722631888975,-3264.99,0.0001726,2]
[333928114,1722631888985,-852.15,0.0001726,2]
[333928115,1722631888995,-645.59,0.0001726,2]
[333928116,1722631889006,-500.0,0.0001726,2]
[333928117,1722631889015,-1240.73,0.0001726,2]
[333928118,1722631889026,-3696.16,0.0001726,2]
[333928119,1722631889037,-1202.01,0.0001726,2]
[333928120,1722631889047,-2794.37,0.0001726,2]
[333928121,1722631889057,-500.0,0.0001726,2]
[333928122,1722631889066,-2251.71,0.0001726,2]
[333928123,1722631889076,-500.0,0.0001726,2]
[333928124,1722631889085,-926.19,0.0001726,2]
[333928125,1722631889095,-3027.14,0.0001726,2]
[333928126,1722631889104,-504.24,0.0001726,2]
[333928127,1722631889114,-1612.54,0.0001726,2]
[333928128,1722631889123,-500.0,0.0001726,2]
[333928129,1722631889133,-2122.85,0.0001726,2]
[333928130,1722631889142,-3341.29,0.0001726,2]
[333928131,1722631889152,-694.52,0.0001726,2]
[333928132,1722631889161,-1082.52,0.0001726,2]
[333928133,1722631889170,-650.54,0.0001726,2]
[333928134,1722631889180,-2598.43,0.0001726,2]
[333928135,1722631889190,-6297.72,0.0001726,2]
[333928136,1722631889200,-2653.91,0.0001726,2]
[333928137,1722631889210,-2172.15,0.0001726,2]
[333928138,1722631889219,-500.0,0.0001726,2]
[333928139,1722631889230,-500.0,0.0001726,2]
[333928140,1722631889239,-948.12,0.0001726,2]
[333928141,1722631889249,-1222.98,0.0001726,2]
[333928142,1722631889260,-500.0,0.0001726,2]
[333928143,1722631889269,-2097.85,0.0001726,2]
[333928144,1722631889279,-1334.04,0.0001726,2]
[333928145,1722631889288,-500.0,0.0001726,2]
[333928146,1722631889299,-6565.68,0.0001726,2]
[333928147,1722631889310,-500.0,0.0001726,2]
[333928148,1722631889321,-15546.98,0.0001726,2]
[333928149,1722631889331,-3121.8,0.0001726,2]
[333928150,1722631889341,-500.0,0.0001726,2]
[333928151,1722631889351,-817.51,0.0001726,2]
[333928152,1722631889361,-951.07,0.0001726,2]
[333928153,1722631889371,-11666.5,0.0001726,2]
[333928154,1722631889381,-1727.02,0.0001726,2]
[333928155,1722631889391,-1473.22,0.0001726,2]
[333928156,1722631889400,-6263.88,0.0001726,2]
[333928157,1722631889410,-2288.81,0.0001726,2]
[333928158,1722631889420,-1227.93,0.0001726,2]
[333928159,1722631889431,-500.0,0.0001726,2]
[333928160,1722631889443,-1322.25,0.0001726,2]
[333928161,1722631889453,-522.62,0.0001726,2]
[333928162,1722631889463,-1919.7,0.0001726,2]
[333928163,1722631889473,-500.0,0.0001726,2]
[333928164,1722631889483,-3515.09,0.0001726,2]
[333928165,1722631889493,-196.29609548,0.0001726,2]
[333928166,1722631889503,-3829.18,0.0001726,2]
[333928167,1722631889513,-5376.17,0.0001726,2]
[333928168,1722631889523,-673.19,0.0001726,2]
[333928169,1722631889533,-2822.75,0.0001726,2]
[333928170,1722631889544,-445.88657126,0.0001726,2]
[333928171,1722631889554,-2008.35,0.0001726,2]
[333928172,1722631889564,-981.35,0.0001726,2]
[333928173,1722631889573,-500.0,0.0001726,2]
[333928174,1722631889583,-685.52,0.0001726,2]
[333928175,1722631889592,-245.20011005,0.0001726,2]
[333928176,1722631889602,-4435.49,0.0001726,2]
[333928177,1722631889612,-500.0,0.0001726,2]
[333928178,1722631889622,-872.74,0.0001726,2]
[333928179,1722631889631,-949.06,0.0001726,2]
[333928180,1722631889641,-2658.03,0.0001726,2]
[333928181,1722631889651,-5218.0,0.0001726,2]
[333928182,1722631889660,-3400.22,0.0001726,2]
[333928183,1722631889671,-500.0,0.0001726,2]
[333928184,1722631889685,-574.23,0.0001726,2]
[333928185,1722631889696,-2831.52,0.0001726,2]
[333928186,1722631889705,-1002.52,0.0001726,2]
[333928187,1722631889715,-594.9574663,0.0001726,2]
[333928188,1722631889724,-2314.61,0.0001726,2]
[333928189,1722631889734,-500.0,0.0001726,2]
[333928190,1722631889743,-776.68,0.0001726,2]
[333928191,1722631889754,-500.0,0.0001726,2]
[333928192,1722631889763,-500.0,0.0001726,2]
[333928193,1722631889772,-739.66,0.0001726,2]
[333928194,1722631889782,-952.19,0.0001726,2]
[333928195,1722631889792,-3943.83,0.0001726,2]
[333928196,1722631889802,-500.0,0.0001726,2]
[333928197,1722631889811,-400.0,0.0001726,2]
[333928198,1722631889821,-1370.55,0.0001726,2]
[333928199,1722631889830,-879.88,0.0001726,2]
[333928200,1722631889840,-5662.54,0.0001726,2]
[333928201,1722631889849,-778.51,0.0001726,2]
[333928202,1722631889859,-4114.11,0.0001726,2]
[333928203,1722631889868,-3003.87,0.0001726,2]
[333928204,1722631889878,-2947.17,0.0001726,2]
[333928205,1722631889887,-994.11,0.0001726,2]
[333928206,1722631889897,-5178.68,0.0001726,2]
[333928207,1722631889906,-500.0,0.0001726,2]
[333928208,1722631889916,-500.0,0.0001726,2]
[333928209,1722631889925,-4631.47,0.0001726,2]
[333928210,1722631889935,-3399.15,0.0001726,2]
[333928211,1722631889946,-3719.52,0.0001726,2]
[333928212,1722631889955,-1176.85,0.0001726,2]
[333928213,1722631889965,-901.79,0.0001726,2]
[333928214,1722631889974,-500.0,0.0001726,2]
[333928215,1722631889984,-1866.32,0.0001726,2]
[333928216,1722631889993,-2716.92,0.0001726,2]
[333928217,1722631890004,-500.0,0.0001726,2]
[333928218,1722631890015,-5014.53,0.0001726,2]
[333928219,1722631890025,-6934.89,0.0001726,2]
[333928220,1722631890036,-2157.87,0.0001726,2]
[333928221,1722631890047,-1862.83,0.0001726,2]
[333928222,1722631890056,-3448.97,0.0001726,2]
[333928223,1722631890066,-502.73,0.0001726,2]
[333928224,1722631890076,-1053.43,0.0001726,2]
[333928225,1722631890086,-3688.62,0.0001726,2]
[333928226,1722631890096,-1295.04,0.0001726,2]
[333928227,1722631890105,-17990.99,0.0001726,2]
[333928228,1722631890114,-9446.74,0.0001726,2]
[333928229,1722631890124,-940.79,0.0001726,2]
[333928230,1722631890134,-6650.95,0.0001726,2]
[333928231,1722631890144,-500.0,0.0001726,2]
[333928232,1722631890153,-500.0,0.0001726,2]
[333928233,1722631890164,-2082.58,0.0001726,2]
[333928234,1722631890174,-500.0,0.0001726,2]
[333928235,1722631890184,-4468.87,0.0001726,2]
[333928236,1722631890196,-3800.28,0.0001726,2]
[333928237,1722631890211,-1111.44,0.0001726,2]
[333928238,1722631890221,-1255.1,0.0001726,2]
[333928239,1722631890231,-536.72917946,0.0001726,2]
[333928240,1722631890241,-500.0,0.0001726,2]
[333928241,1722631890251,-1533.49,0.0001726,2]
[333928242,1722631890260,-750.36,0.0001726,2]
[333928243,1722631890270,-3300.34,0.0001726,2]
[333928244,1722631890279,-500.0,0.0001726,2]
[333928245,1722631890288,-3049.98,0.0001726,2]
[333928246,1722631890298,-1836.69,0.0001726,2]
[333928247,1722631890308,-1276.99,0.0001726,2]
[333928248,1722631890317,-2045.49,0.0001726,2]
[333928249,1722631890327,-1190.92,0.0001726,2]
[333928250,1722631890336,-537.78,0.0001726,2]
[333928251,1722631890346,-500.0,0.0001726,2]
[333928252,1722631890356,-3361.18,0.0001726,2]
[333928253,1722631890365,-896.88,0.0001726,2]
[333928254,1722631890375,-939.76,0.0001726,2]
[333928255,1722631890385,-2572.45,0.0001726,2]
[333928256,1722631890394,-245.940842,0.0001726,2]
[333928257,1722631890403,-421.34259068,0.00017315,2]
[333928258,1722631890413,-347.01013436,0.00017373,2]
[333928259,1722631890422,-155.0,0.0001738,2]
[333928260,1722631890432,-16045.63488926,0.00017408,2]
[333928261,1722631890444,-163.06583263,0.00017434,2]
[333928262,1722631890455,-520.0,0.00017481,2]
[333928263,1722631890465,-949.37,0.0001751,2]
[333928264,1722631890474,-9374.3466834,0.00017522,2]
[333928265,1722631890483,-1127.9286091,0.00017522,2]
[333928266,1722631890493,-508.79891608,0.00017531,2]
[333928267,1722631890503,-5835.33760658,0.00017534,2]
[333928268,1722631890512,-500.0,0.00017534,2]
[333928269,1722631890521,-1253.02,0.00017534,2]
[333928270,1722631890530,-517.22865287,0.00017534,2]
[333928271,1722631890885,-500.0,0.00017534,2]
[333928272,1722631890904,-500.0,0.00017534,2]
[333928273,1722631890914,-2250.07,0.00017534,2]
[333928274,1722631890923,-1145.72,0.00017534,2]
[333928275,1722631890932,-500.0,0.00017534,2]
[333928276,1722631890942,-500.0,0.00017534,2]
[333928277,1722631890951,-643.67,0.00017534,2]
[333928278,1722631890961,-828.51,0.00017534,2]
[333928279,1722631890970,-659.65,0.00017534,2]
[333928280,1722631890979,-714.58,0.00017534,2]
[333928281,1722631890990,-1399.14,0.00017534,2]
[333928282,1722631890999,-500.0,0.00017534,2]
[333928283,1722631891009,-500.0,0.00017534,2]
[333928284,1722631891019,-959.33,0.00017534,2]
[333928285,1722631891028,-500.0,0.00017534,2]
[333928286,1722631891038,-1202.33,0.00017534,2]
[333928287,1722631891047,-500.0,0.00017534,2]
[333928288,1722631891056,-801.79,0.00017534,2]
[333928289,1722631891066,-850.22,0.00017534,2]
[333928290,1722631891075,-500.0,0.00017534,2]
[333928291,1722631891084,-500.0,0.00017534,2]
[333928292,1722631891094,-1940.96,0.00017534,2]
[333928293,1722631891103,-1164.02,0.00017534,2]
[333928294,1722631891113,-227.08,0.00017534,2]
[333928295,1722631891122,-500.0,0.00017534,2]
[333928296,1722631891132,-684.63,0.00017534,2]
[333928297,1722631891141,-1463.38,0.00017534,2]
[333928298,1722631891151,-678.52,0.00017534,2]
[333928299,1722631891160,-1236.27,0.00017534,2]
[333928300,1722631891169,-500.0,0.00017534,2]
[333928301,1722631891179,-912.78,0.00017534,2]
[333928302,1722631891188,-1399.18,0.00017534,2]
[333928303,1722631891202,-717.09,0.00017534,2]
[333928304,1722631891212,-601.54,0.00017534,2]
[333928305,1722631891222,-500.0,0.00017534,2]
[333928306,1722631891231,-500.0,0.00017534,2]
[333928307,1722631891241,-624.24,0.00017534,2]
[333928308,1722631891251,-772.84,0.00017534,2]
[333928309,1722631891260,-500.0,0.00017534,2]
[333928310,1722631891270,-500.0,0.00017534,2]
[333928311,1722631891280,-590.92,0.00017534,2]
[333928312,1722631891291,-500.0,0.00017534,2]
[333928313,1722631891300,-500.0,0.00017534,2]
[333928314,1722631891311,-500.0,0.00017534,2]
[333928315,1722631891321,-1290.26,0.00017534,2]
[333928316,1722631891331,-578.21,0.00017534,2]
[333928317,1722631891340,-1619.87,0.00017534,2]
[333928318,1722631891350,-500.0,0.00017534,2]
[333928319,1722631891360,-570.92,0.00017534,2]
[333928320,1722631891369,-540.78,0.00017534,2]
[333928321,1722631891379,-696.91,0.00017534,2]
[333928322,1722631891389,-1078.33,0.00017534,2]
[333928323,1722631891398,-500.0,0.00017534,2]
[333928324,1722631891408,-623.34,0.00017534,2]
[333928325,1722631891418,-1419.39,0.00017534,2]
[333928326,1722631891427,-500.0,0.00017534,2]
[333928327,1722631891437,-1662.54,0.00017534,2]
[333928328,1722631891454,-1644.64,0.00017534,2]
[333928329,1722631891464,-780.53,0.00017534,2]
[333928330,1722631891474,-553.18,0.00017534,2]
[333928331,1722631891484,-723.34,0.00017534,2]
[333928332,1722631891494,-791.76,0.00017534,2]
[333928333,1722631891504,-500.0,0.00017534,2]
[333928334,1722631891513,-503.13,0.00017534,2]
[333928335,1722631891523,-801.56,0.00017534,2]
[333928336,1722631891534,-1198.81,0.00017534,2]
[333928337,1722631891543,-500.0,0.00017534,2]
[333928338,1722631891553,-500.0,0.00017534,2]
[333928339,1722631891563,-1604.9,0.00017534,2]
[333928340,1722631891573,-729.83,0.00017534,2]
[333928341,1722631891583,-1748.07,0.00017534,2]
[333928342,1722631891593,-500.0,0.00017534,2]
[333928343,1722631891603,-1346.22,0.00017534,2]
[333928344,1722631891613,-2059.13,0.00017534,2]
[333928345,1722631891622,-997.69,0.00017534,2]
[333928346,1722631891632,-500.0,0.00017534,2]
[333928347,1722631891642,-1212.35,0.00017534,2]
[333928348,1722631891651,-843.11,0.00017534,2]
[333928349,1722631891661,-500.0,0.00017534,2]
[333928350,1722631891671,-500.0,0.00017534,2]
[333928351,1722631891685,-1866.38,0.00017534,2]
[333928352,1722631891698,-1363.88,0.00017534,2]
[333928353,1722631891708,-500.0,0.00017534,2]
[333928354,1722631891719,-500.0,0.00017534,2]
[333928355,1722631891728,-500.0,0.00017534,2]
[333928356,1722631891738,-1438.22,0.00017534,2]
[333928357,1722631891747,-643.47,0.00017534,2]
[333928358,1722631891760,-500.0,0.00017534,2]
[333928359,1722631891770,-500.0,0.00017534,2]
[333928360,1722631891780,-500.0,0.00017534,2]
[333928361,1722631891789,-1643.03,0.00017534,2]
[333928362,1722631891799,-543.03,0.00017534,2]
[333928363,1722631891811,-500.0,0.00017534,2]
[333928364,1722631891822,-500.0,0.00017534,2]
[333928365,1722631891834,-1346.74,0.00017534,2]
[333928366,1722631891845,-635.67,0.00017534,2]
[333928367,1722631891856,-500.0,0.00017534,2]
[333928368,1722631891866,-553.97,0.00017534,2]
[333928369,1722631891875,-500.0,0.00017534,2]
[333928370,1722631891885,-500.0,0.00017534,2]
[333928371,1722631891894,-500.0,0.00017534,2]
[333928372,1722631891903,-500.0,0.00017534,2]
[333928373,1722631891913,-500.0,0.00017534,2]
[333928374,1722631891922,-500.0,0.00017534,2]
[333928375,1722631891932,-500.0,0.00017534,2]
[333928376,1722631891942,-1307.89,0.00017534,2]
[333928377,1722631891952,-2273.53,0.00017534,2]
[333928378,1722631891961,-500.0,0.00017534,2]
[333928379,1722631891971,-713.8,0.00017534,2]
[333928380,1722631891980,-970.89,0.00017534,2]
[333928381,1722631891990,-972.89,0.00017534,2]
[333928382,1722631891999,-500.0,0.00017534,2]
[333928383,1722631892010,-931.08,0.00017534,2]